Body,Body Name,Date,TransNo,Amount � (Excl VAT),Supplier name,Description,Expense Area,Expense Type,Expense Code,
http://opendatacommunities.org/id/london-borough-council/sutton,London Borough of Sutton,01/04/2021,10002266,2.24, GOOGLE  ADS8517410550,DA VALENTINES CAMPAIGN GOOGLE AD WORDS,Peoples Services,Publicity,A44266,
http://opendatacommunities.org/id/london-borough-council/sutton,London Borough of Sutton,23/04/2021,10002266,91.32, FACEBK TW7DA5PAL2,"SPLIT -  KEEP SUTTON SAFE, RAPID TESTIN G PHARMACIES & NHS 18-50 SURVEY MARCH 2021 (27.4%)",Health and Wellbeing,Publicity,A44266,
http://opendatacommunities.org/id/london-borough-council/sutton,London Borough of Sutton,27/03/2021,10002266,7.03, TESCO STORE 3235,GROCERIES,Health and Wellbeing,First Aid Equipment,A40010,
http://opendatacommunities.org/id/london-borough-council/sutton,London Borough of Sutton,23/04/2021,10002266,8.32, TWINKL LIMITED,TWINKL SUBSCRIPTION,Health and Wellbeing,Equipment And Materials Purchase,A40000,
http://opendatacommunities.org/id/london-borough-council/sutton,London Borough of Sutton,20/04/2021,10002266,9.16, AMAZON.CO.UK M44LX3DZ4,EDUCATIONAL EQUIPMENT,Health and Wellbeing,Equipment And Materials Purchase,A40000,
http://opendatacommunities.org/id/london-borough-council/sutton,London Borough of Sutton,29/03/2021,10002266,18.62, AMAZON.CO.UK MU8SL88G4,FIRST AID SUPPLIES,Health and Wellbeing,First Aid Equipment,A40010,
http://opendatacommunities.org/id/london-borough-council/sutton,London Borough of Sutton,18/04/2021,10002266,100.71, W M MORRISONS.COM,GROCERIES,Health and Wellbeing,Provisions,A41006,
http://opendatacommunities.org/id/london-borough-council/sutton,London Borough of Sutton,18/04/2021,10002266,27.98, TESCO STORE 3235,GROCERIES,Health and Wellbeing,Provisions,A41006,
http://opendatacommunities.org/id/london-borough-council/sutton,London Borough of Sutton,12/04/2021,10002266,16.28, LIDL GB LONDON,GROCERIES,Health and Wellbeing,Provisions,A41006,
http://opendatacommunities.org/id/london-borough-council/sutton,London Borough of Sutton,05/04/2021,10002266,29.16, TESCO STORE 3235,GROCERIES,Health and Wellbeing,Provisions,A41006,
http://opendatacommunities.org/id/london-borough-council/sutton,London Borough of Sutton,21/04/2021,10002266,14.16, AMZNMKTPLACE,FIRST AID,Health and Wellbeing,Corporation Tax,A44292,
http://opendatacommunities.org/id/london-borough-council/sutton,London Borough of Sutton,15/04/2021,10002266,329.11, AMAZON.CO.UK M45BF4XV4,GAZEBO FOR RHYMETIMES AND EXTERNAL EVENTS (COVID-19),Health and Wellbeing,Purchases and Repairs Fixtures & Fittings,A25005,
http://opendatacommunities.org/id/london-borough-council/sutton,London Borough of Sutton,05/04/2021,10002266,5.83, FACEBK  9PJQT2KWG2,FACEBOOK SOCIAL MEDIA,Health and Wellbeing,Publicity,A44266,
http://opendatacommunities.org/id/london-borough-council/sutton,London Borough of Sutton,01/04/2021,10002266,4.17, FACEBK  ASLSP2KWG2,FACEBOOK SOCIAL MEDIA,Health and Wellbeing,Publicity,A44266,
http://opendatacommunities.org/id/london-borough-council/sutton,London Borough of Sutton,30/03/2021,10002266,2.50, FACEBK  VWU6HZEJ72,SOCIAL MEDIA POSTS,Health and Wellbeing,Publicity,A44266,
http://opendatacommunities.org/id/london-borough-council/sutton,London Borough of Sutton,30/03/2021,10002266,-2.00, FACEBK  RUM3LXWJ72,SOCIAL MEDIA POSTS,Health and Wellbeing,Publicity,A44266,
http://opendatacommunities.org/id/london-borough-council/sutton,London Borough of Sutton,30/03/2021,10002266,-3.00, FACEBK  MKHD3YSJ72,SOCIAL MEDIA POSTS,Health and Wellbeing,Publicity,A44266,
http://opendatacommunities.org/id/london-borough-council/sutton,London Borough of Sutton,30/03/2021,10002266,-1.50, FACEBK  6HLALY6K72,SOCIAL MEDIA POSTS,Health and Wellbeing,Publicity,A44266,
http://opendatacommunities.org/id/london-borough-council/sutton,London Borough of Sutton,29/03/2021,10002266,2.50, FACEBK  FKASX4FXG2,SOCIAL MEDIA POSTS,Health and Wellbeing,Publicity,A44266,
http://opendatacommunities.org/id/london-borough-council/sutton,London Borough of Sutton,27/03/2021,10002266,2.50, FACEBK  TEGH62XWG2,SOCIAL MEDIA POSTS,Health and Wellbeing,Publicity,A44266,
http://opendatacommunities.org/id/london-borough-council/sutton,London Borough of Sutton,27/03/2021,10002266,2.03, FACEBK 8U2JJ2FJE2,SOCIAL MEDIA POSTS,Health and Wellbeing,Publicity,A44266,
http://opendatacommunities.org/id/london-borough-council/sutton,London Borough of Sutton,20/04/2021,10002266,7.08, FACEBK  YGEVUZJK72,FACEBOOK SOCIAL MEDIA,Health and Wellbeing,Publicity,A44266,
http://opendatacommunities.org/id/london-borough-council/sutton,London Borough of Sutton,29/03/2021,10002266,993.90, FLUID BRANDING LIMITED,HAND SANITISERS FOR BEDDINGTON PARK / EASTER WEEKEND STALL,Health and Wellbeing,Provisions,A41006,
http://opendatacommunities.org/id/london-borough-council/sutton,London Borough of Sutton,23/04/2021,10002266,241.97, FACEBK TW7DA5PAL2,"SPLIT - BUSINESSES AND COVID, EU SETTLEMENT (72.6%)",Health and Wellbeing,Publicity,A44266,
http://opendatacommunities.org/id/london-borough-council/sutton,London Borough of Sutton,08/04/2021,10002266,108.00, WALLINGTON CARS AND CO,WALLINGTON COURIERS - FOR BEDDINGTON PARK EVENT,Health and Wellbeing,Miscellaneous Expenses,A49000,
http://opendatacommunities.org/id/london-borough-council/sutton,London Borough of Sutton,03/04/2021,10002266,8.32, SPOTIFY UK,MUSIC FOR WEDDINGS,Resources,Subscriptions,A47010,
http://opendatacommunities.org/id/london-borough-council/sutton,London Borough of Sutton,14/04/2021,10002266,32.70, POWERPOINT ELECTRICS,LAMPS FOR CHANDELIERS,Resources,Miscellaneous Expenses,A49000,
http://opendatacommunities.org/id/london-borough-council/sutton,London Borough of Sutton,15/04/2021,10002266,6.75, MAILCHIMP    MONTHLY,WEB HOSTING,Resources,IT Software Purchase,A45040,
http://opendatacommunities.org/id/london-borough-council/sutton,London Borough of Sutton,14/04/2021,10002266,245.36, MAILCHIMP    MONTHLY,WEB HOSTING,Resources,IT Software Purchase,A45040,
http://opendatacommunities.org/id/london-borough-council/sutton,London Borough of Sutton,06/04/2021,10002266,-13.89, AMZ AMAZON US,"SPLIT - 2 PACK MATTE ANTI-GLARE SCREEN PROTECTOR FOR LENOVO YOGA C740 14 INCH 2020 2019 LAPTOP,WITH SURPRISE KEYBOARD COVER, HELP FOR YOUR EYES REDUCE FATIGUE (100%)",Resources,Equipment And Materials Purchase,A40000,
http://opendatacommunities.org/id/london-borough-council/sutton,London Borough of Sutton,29/03/2021,10002266,11.48, MINICABIT,MINICABIT,Resources,Miscellaneous Expenses,A49000,
http://opendatacommunities.org/id/london-borough-council/sutton,London Borough of Sutton,11/04/2021,10002266,14.20, AMZNMKTPLACE,"SPLIT - 2 PACK MATTE ANTI-GLARE SCREEN PROTECTOR FOR LENOVO YOGA C740 14 INCH 2020 2019 LAPTOP,WITH SURPRISE KEYBOARD COVER, HELP FOR YOUR EYES REDUCE FATIGUE (100%)",Resources,Miscellaneous Expenses,A49000,
http://opendatacommunities.org/id/london-borough-council/sutton,London Borough of Sutton,26/03/2021,10002266,86.60, CARTRIDGE SAVE,INK CATRIDGE X 2 FOR CLLR.,Resources,Stationery,A43015,
http://opendatacommunities.org/id/london-borough-council/sutton,London Borough of Sutton,29/03/2021,10002266,2.39, CANVA  02999-0810077,CANVA INTERNATIONAL FEE,Resources,Publicity,A44266,
http://opendatacommunities.org/id/london-borough-council/sutton,London Borough of Sutton,26/03/2021,10002266,87.05, CANVA  02999-0810077,CANVA SUBSCRIPTION,Resources,Publicity,A44266,
http://opendatacommunities.org/id/london-borough-council/sutton,London Borough of Sutton,19/04/2021,10002266,10.11, MAILCHIMP,MAILCHIMP SUBSCRIPTION FEE,Resources,Communication Support - Other Recovery,R20018,
http://opendatacommunities.org/id/london-borough-council/sutton,London Borough of Sutton,26/03/2021,10002266,504.98, ARGOS LTD,CL&G,Resources,"Grants, Contributions & Donations",A47005,
http://opendatacommunities.org/id/london-borough-council/sutton,London Borough of Sutton,26/03/2021,10002266,69.99, CURRYS ONLINE,CL&G,Resources,"Grants, Contributions & Donations",A47005,
http://opendatacommunities.org/id/london-borough-council/sutton,London Borough of Sutton,23/04/2021,10002266,286.95, ARGOS LTD,CL&G,Resources,"Grants, Contributions & Donations",A47005,
http://opendatacommunities.org/id/london-borough-council/sutton,London Borough of Sutton,23/04/2021,10002266,274.00, CURRYS ONLINE,CL&G,Resources,"Grants, Contributions & Donations",A47005,
http://opendatacommunities.org/id/london-borough-council/sutton,London Borough of Sutton,21/04/2021,10002266,554.98, ARGOS LTD,CL&G,Resources,"Grants, Contributions & Donations",A47005,
http://opendatacommunities.org/id/london-borough-council/sutton,London Borough of Sutton,20/04/2021,10002266,661.94, ARGOS LTD,CL&G,Resources,"Grants, Contributions & Donations",A47005,
http://opendatacommunities.org/id/london-borough-council/sutton,London Borough of Sutton,20/04/2021,10002266,713.98, CURRYS ONLINE,CL&G,Resources,"Grants, Contributions & Donations",A47005,
http://opendatacommunities.org/id/london-borough-council/sutton,London Borough of Sutton,20/04/2021,10002266,-764.97, ARGOS LTD,CL&G,Resources,"Grants, Contributions & Donations",A47005,
http://opendatacommunities.org/id/london-borough-council/sutton,London Borough of Sutton,19/04/2021,10002266,708.98, CURRYS ONLINE,CL&G,Resources,"Grants, Contributions & Donations",A47005,
http://opendatacommunities.org/id/london-borough-council/sutton,London Borough of Sutton,19/04/2021,10002266,921.92, ARGOS LTD,CL&G,Resources,"Grants, Contributions & Donations",A47005,
http://opendatacommunities.org/id/london-borough-council/sutton,London Borough of Sutton,16/04/2021,10002266,631.94, ARGOS LTD,CL&G,Resources,"Grants, Contributions & Donations",A47005,
http://opendatacommunities.org/id/london-borough-council/sutton,London Borough of Sutton,15/04/2021,10002266,409.00, CURRYS ONLINE,CL&G,Resources,"Grants, Contributions & Donations",A47005,
http://opendatacommunities.org/id/london-borough-council/sutton,London Borough of Sutton,15/04/2021,10002266,784.97, ARGOS LTD,CL&G,Resources,"Grants, Contributions & Donations",A47005,
http://opendatacommunities.org/id/london-borough-council/sutton,London Borough of Sutton,15/04/2021,10002266,-784.97, ARGOS LTD,CL&G,Resources,"Grants, Contributions & Donations",A47005,
http://opendatacommunities.org/id/london-borough-council/sutton,London Borough of Sutton,14/04/2021,10002266,857.98, CURRYS ONLINE,CL&G,Resources,"Grants, Contributions & Donations",A47005,
http://opendatacommunities.org/id/london-borough-council/sutton,London Borough of Sutton,14/04/2021,10002266,172.95, ARGOS LTD,CL&G,Resources,"Grants, Contributions & Donations",A47005,
http://opendatacommunities.org/id/london-borough-council/sutton,London Borough of Sutton,14/04/2021,10002266,792.99, CURRYS ONLINE,CL&G,Resources,"Grants, Contributions & Donations",A47005,
http://opendatacommunities.org/id/london-borough-council/sutton,London Borough of Sutton,14/04/2021,10002266,128.95, ARGOS LTD,CL&G,Resources,"Grants, Contributions & Donations",A47005,
http://opendatacommunities.org/id/london-borough-council/sutton,London Borough of Sutton,14/04/2021,10002266,827.99, CURRYS ONLINE,CL&G,Resources,"Grants, Contributions & Donations",A47005,
http://opendatacommunities.org/id/london-borough-council/sutton,London Borough of Sutton,14/04/2021,10002266,-78.00, CURRYS ONLINE,CL&G,Resources,"Grants, Contributions & Donations",A47005,
http://opendatacommunities.org/id/london-borough-council/sutton,London Borough of Sutton,14/04/2021,10002266,481.93, ARGOS LTD,CL&G,Resources,"Grants, Contributions & Donations",A47005,
http://opendatacommunities.org/id/london-borough-council/sutton,London Borough of Sutton,14/04/2021,10002266,-249.99, ARGOS LTD,CL&G,Resources,"Grants, Contributions & Donations",A47005,
http://opendatacommunities.org/id/london-borough-council/sutton,London Borough of Sutton,14/04/2021,10002266,-199.99, ARGOS LTD,CL&G,Resources,"Grants, Contributions & Donations",A47005,
http://opendatacommunities.org/id/london-borough-council/sutton,London Borough of Sutton,14/04/2021,10002266,-294.99, ARGOS LTD,CL&G,Resources,"Grants, Contributions & Donations",A47005,
http://opendatacommunities.org/id/london-borough-council/sutton,London Borough of Sutton,14/04/2021,10002266,130.00, ARGOS LTD,CL&G,Resources,"Grants, Contributions & Donations",A47005,
http://opendatacommunities.org/id/london-borough-council/sutton,London Borough of Sutton,13/04/2021,10002266,481.95, ARGOS LTD,CL&G,Resources,"Grants, Contributions & Donations",A47005,
http://opendatacommunities.org/id/london-borough-council/sutton,London Borough of Sutton,13/04/2021,10002266,764.97, ARGOS LTD,CL&G,Resources,"Grants, Contributions & Donations",A47005,
http://opendatacommunities.org/id/london-borough-council/sutton,London Borough of Sutton,13/04/2021,10002266,420.00, ARGOS LTD,CL&G,Resources,"Grants, Contributions & Donations",A47005,
http://opendatacommunities.org/id/london-borough-council/sutton,London Borough of Sutton,12/04/2021,10002266,119.99, CURRYS ONLINE,CL&G,Resources,"Grants, Contributions & Donations",A47005,
http://opendatacommunities.org/id/london-borough-council/sutton,London Borough of Sutton,12/04/2021,10002266,264.00, CURRYS ONLINE,CL&G,Resources,"Grants, Contributions & Donations",A47005,
http://opendatacommunities.org/id/london-borough-council/sutton,London Borough of Sutton,12/04/2021,10002266,767.99, CURRYS ONLINE,CL&G,Resources,"Grants, Contributions & Donations",A47005,
http://opendatacommunities.org/id/london-borough-council/sutton,London Borough of Sutton,09/04/2021,10002266,123.95, ARGOS LTD,CL&G,Resources,"Grants, Contributions & Donations",A47005,
http://opendatacommunities.org/id/london-borough-council/sutton,London Borough of Sutton,09/04/2021,10002266,744.97, ARGOS LTD,CL&G,Resources,"Grants, Contributions & Donations",A47005,
http://opendatacommunities.org/id/london-borough-council/sutton,London Borough of Sutton,08/04/2021,10002266,294.00, CURRYS ONLINE,CL&G,Resources,"Grants, Contributions & Donations",A47005,
http://opendatacommunities.org/id/london-borough-council/sutton,London Borough of Sutton,07/04/2021,10002266,259.00, CURRYS ONLINE,CL&G,Resources,"Grants, Contributions & Donations",A47005,
http://opendatacommunities.org/id/london-borough-council/sutton,London Borough of Sutton,07/04/2021,10002266,469.98, CURRYS ONLINE,CL&G,Resources,"Grants, Contributions & Donations",A47005,
http://opendatacommunities.org/id/london-borough-council/sutton,London Borough of Sutton,06/04/2021,10002266,73.95, ARGOS LTD,CL&G,Resources,"Grants, Contributions & Donations",A47005,
http://opendatacommunities.org/id/london-borough-council/sutton,London Borough of Sutton,30/03/2021,10002266,225.95, ARGOS LTD,CL&G,Resources,"Grants, Contributions & Donations",A47005,
http://opendatacommunities.org/id/london-borough-council/sutton,London Borough of Sutton,30/03/2021,10002266,314.00, CURRYS ONLINE,CL&G,Resources,"Grants, Contributions & Donations",A47005,
http://opendatacommunities.org/id/london-borough-council/sutton,London Borough of Sutton,14/04/2021,10002266,39.99, AMAZON.CO.UK M40C24GM4,PURCHASE OF ERGONOMIC KEYBOARD,Resources,Stationery,A43015,
http://opendatacommunities.org/id/london-borough-council/sutton,London Borough of Sutton,08/04/2021,10002266,136.99, WWW.CPAG.ORG.UK,PURCHASE OF GUIDANCE BOOK,Resources,Miscellaneous Expenses,A49000,
http://opendatacommunities.org/id/london-borough-council/sutton,London Borough of Sutton,12/04/2021,10002266,-1.00, RB KINGSTON GUILDHALL2,TEST TRANSACTION - ISSUE WITH KAE PROCESSING A PAYMENT,Resources,Miscellaneous Expenses,A49000,
http://opendatacommunities.org/id/london-borough-council/sutton,London Borough of Sutton,12/04/2021,10002266,1.00, RB KINGSTON GUILDHALL2,REFUND OF TEST PAYMENT FOR KAE.,Resources,Miscellaneous Expenses,A49000,
http://opendatacommunities.org/id/london-borough-council/sutton,London Borough of Sutton,23/04/2021,10002266,1.50, WWW.GOV.UK,PROBATE/WILL,Resources,Legal Services,A44025,
http://opendatacommunities.org/id/london-borough-council/sutton,London Borough of Sutton,21/04/2021,10002266,234.45, MAILCHIMP,SHP MAILCHIMP SUBSCRIPTION,Environment Housing and Neighbourhoods,Communication Support,H10018,
http://opendatacommunities.org/id/london-borough-council/sutton,London Borough of Sutton,07/04/2021,10002266,69.95, ARGOS LTD,ARGOS PAYMENT FOR YOUNG PERSON - LEAVING CARE TEAM,Peoples Services,Equipment And Materials Purchase,A40000,
http://opendatacommunities.org/id/london-borough-council/sutton,London Borough of Sutton,19/04/2021,10002266,174.17, CURRYS ONLINE,CURRYS PAYMENT FOR CLIENT WITHIN LEAVING CARE SERVICES,Peoples Services,Equipment And Materials Purchase,A40000,
http://opendatacommunities.org/id/london-borough-council/sutton,London Borough of Sutton,19/04/2021,10002266,245.82, ARGOS LTD,ARGOS PAYMENT FOR CLIENT WITHIN LEAVING CARE SERVICES,Peoples Services,Equipment And Materials Purchase,A40000,
http://opendatacommunities.org/id/london-borough-council/sutton,London Borough of Sutton,16/04/2021,10002266,299.99, ARGOS LTD,ARGOS - LMCB OVEN,Peoples Services,Equipment And Materials Purchase,A40000,
http://opendatacommunities.org/id/london-borough-council/sutton,London Borough of Sutton,16/04/2021,10002266,249.99, ARGOS LTD,ARGOS - LMCB WASHING MACHINE,Peoples Services,Equipment And Materials Purchase,A40000,
http://opendatacommunities.org/id/london-borough-council/sutton,London Borough of Sutton,16/04/2021,10002266,-299.99, ARGOS LTD,ARGOS - CREDIT FOR CANCELLED OVEN - CLIENT EB,Peoples Services,Equipment And Materials Purchase,A40000,
http://opendatacommunities.org/id/london-borough-council/sutton,London Borough of Sutton,15/04/2021,10002266,499.98, ARGOS LTD,ARGOS - LMCB FRIDGE FREEZER FOR LCT - CLIENT EB,Peoples Services,Equipment And Materials Purchase,A40000,
http://opendatacommunities.org/id/london-borough-council/sutton,London Borough of Sutton,14/04/2021,10002266,252.93, ARGOS LTD,ARGOS ORDER FOR LCT - CLIENT EB,Peoples Services,Equipment And Materials Purchase,A40000,
http://opendatacommunities.org/id/london-borough-council/sutton,London Borough of Sutton,14/04/2021,10002266,333.32, ARGOS LTD,ARGOS PAYMENT FOR CLIENT WITHIN THE LEAVING CARE SERVICES,Peoples Services,Equipment And Materials Purchase,A40000,
http://opendatacommunities.org/id/london-borough-council/sutton,London Borough of Sutton,23/04/2021,10002266,196.25, WWW.SAFESTORE.CO.UK,STORAGE FOR YOUNG PERSON WITHIN THE LEAVING CARE SERVICES,Peoples Services,Storage And Archiving Services,A44085,
http://opendatacommunities.org/id/london-borough-council/sutton,London Borough of Sutton,30/03/2021,10002266,239.12, ARGOS LTD,ARGOS,Peoples Services,C.C.A Food & Clothing,A61006,
http://opendatacommunities.org/id/london-borough-council/sutton,London Borough of Sutton,19/04/2021,10002266,172.46, ARGOS LTD,ARGOS PAYMENT FOR CLIENT WITHIN LEAVING CARE SERVICES,Peoples Services,C.C.A Household Equip & Maint,A61007,
http://opendatacommunities.org/id/london-borough-council/sutton,London Borough of Sutton,19/04/2021,10002266,108.33, ARGOS LTD,ARGOS PAYMENT FOR CLIENT WITHIN LEAVING CARE SERVICES,Peoples Services,C.C.A Household Equip & Maint,A61007,
http://opendatacommunities.org/id/london-borough-council/sutton,London Borough of Sutton,09/04/2021,10002266,133.32, ARGOS LTD,ARGOS PAYMENT FOR LEAVING CARE SERVICES,Peoples Services,C.C.A Household Equip & Maint,A61007,
http://opendatacommunities.org/id/london-borough-council/sutton,London Borough of Sutton,14/04/2021,10002266,241.66, CURRYS ONLINE,CURRYS PAYMENT FOR CLIENT WITHIN LEAVING CARE SERVICES,Peoples Services,C.C.A Household Equip & Maint,A61007,
http://opendatacommunities.org/id/london-borough-council/sutton,London Borough of Sutton,14/04/2021,10002266,5.16, AMZNMKTPLACE,"SPLIT - HERLITZ A4 WATER COLOUR PAD - WHITE (PACK OF 3, 20 SHEETS) (36.36%)",Peoples Services,C.C.A Household Equip & Maint,A61007,
http://opendatacommunities.org/id/london-borough-council/sutton,London Borough of Sutton,14/04/2021,10002266,6.26, AMZNMKTPLACE,"SPLIT - MAGICFLY WATER BRUSH PENS, WATERCOLOUR PAINTING BRUSHES SET PACK OF 6 PAINTING BRUSHES (44.12%)",Peoples Services,C.C.A Household Equip & Maint,A61007,
http://opendatacommunities.org/id/london-borough-council/sutton,London Borough of Sutton,14/04/2021,10002266,2.77, AMZNMKTPLACE,BALANCING ENTRY AMOUNT (19.52%),Peoples Services,C.C.A Household Equip & Maint,A61007,
http://opendatacommunities.org/id/london-borough-council/sutton,London Borough of Sutton,09/04/2021,10002266,179.54, ARGOS LTD,ARGOS PAYMENT FOR LEAVING CARE SERVICES,Peoples Services,C.C.A Household Equip & Maint,A61007,
http://opendatacommunities.org/id/london-borough-council/sutton,London Borough of Sutton,06/04/2021,10002266,132.50, TVLICENSING.CO.UK,TV LICENSE FOR A YOUNG PERSON,Peoples Services,C.C.A Household Equip & Maint,A61007,
http://opendatacommunities.org/id/london-borough-council/sutton,London Borough of Sutton,29/03/2021,10002266,678.32, SUTTON APPLIANCES,SUTTON APPLIANCES,Peoples Services,Client Care/Assistance,A61011,
http://opendatacommunities.org/id/london-borough-council/sutton,London Borough of Sutton,26/03/2021,10002266,359.70, WWW.COURIEREXPERT.CO.U,COURIER,Peoples Services,Client Care/Assistance,A61011,
http://opendatacommunities.org/id/london-borough-council/sutton,London Borough of Sutton,14/04/2021,10002266,26.90, AMZNMKTPLACE,"SPLIT - DERWENT 32883 WATERCOLOUR PENCILS, MULTI-COLOUR, SET OF 24 (95.9%)",Peoples Services,Client Care/Assistance,A61011,
http://opendatacommunities.org/id/london-borough-council/sutton,London Borough of Sutton,14/04/2021,10002266,1.15, AMZNMKTPLACE,BALANCING ENTRY AMOUNT (4.1%),Peoples Services,Client Care/Assistance,A61011,
http://opendatacommunities.org/id/london-borough-council/sutton,London Borough of Sutton,19/04/2021,10002266,265.83, CURRYS ONLINE,CURRYS PAYMENT FOR CLIENT WITHIN LEAVING CARE SERVICES,Peoples Services,Client Care/Assistance,A61011,
http://opendatacommunities.org/id/london-borough-council/sutton,London Borough of Sutton,30/03/2021,10002266,191.66, SP   HOUSE OF REEVES,HOUSEOFREEVES,Peoples Services,Client Care/Assistance,A61011,
http://opendatacommunities.org/id/london-borough-council/sutton,London Borough of Sutton,30/03/2021,10002266,-191.66, SP   HOUSE OF REEVES,HOUSEOFREEVES,Peoples Services,Client Care/Assistance,A61011,
http://opendatacommunities.org/id/london-borough-council/sutton,London Borough of Sutton,06/04/2021,10002266,266.73, WWW.COURIEREXPERT.CO.U,COURIER EXPERT MOVING ITEMS TO DIFFERENT PLACEMENT FOR YOUNG PERSON IN LEAVING CARE TEAM,Peoples Services,Client Care/Assistance,A61011,
http://opendatacommunities.org/id/london-borough-council/sutton,London Borough of Sutton,07/04/2021,10002266,121.00, B & Q 1191,JD,Peoples Services,Set Up Costs - Children Leaving Care,A61021,
http://opendatacommunities.org/id/london-borough-council/sutton,London Borough of Sutton,09/04/2021,10002266,263.73, WF  WAYFAIR3549086594,WAYFAIR PAYMENT FOR LEAVING CARE SERVICES,Peoples Services,Set Up Costs - Children Leaving Care,A61021,
http://opendatacommunities.org/id/london-borough-council/sutton,London Borough of Sutton,21/04/2021,10002266,300.00, IZ  QUICK PEST CON,PEST CONTROL FOR CLIENT WITHIN THE LEAVING CARE TEAM,Peoples Services,Pest Control,A20024,
http://opendatacommunities.org/id/london-borough-council/sutton,London Borough of Sutton,21/04/2021,10002266,19.99, AMZNMKTPLACE,"SPLIT - CLEVAREAN ORIGINAL ANTIBACTERIAL HAND WASH 5LTR, PACK OF 2 LIQUID SOAP REFILLS BULK BUY HAND SOAP LIQUID FOR MOISTURISING AND PROTECTION OF HANDS, 5L (100%)",Peoples Services,Equipment And Materials Purchase,A40000,
http://opendatacommunities.org/id/london-borough-council/sutton,London Borough of Sutton,21/04/2021,10002266,5.61, AMZNMKTPLACE,"SPLIT - ADDIS 510284 CLOSED TOILET BRUSH SET, PLASTIC, WHITE, 12.5 X 12.5 X 39 CM (100%)",Peoples Services,Equipment And Materials Purchase,A40000,
http://opendatacommunities.org/id/london-borough-council/sutton,London Borough of Sutton,21/04/2021,10002266,6.58, AMZNMKTPLACE,"SPLIT - VANISH FABRIC STAIN REMOVER GOLD OXI ADVANCE POWDER, 1.41KG (100%)",Peoples Services,Equipment And Materials Purchase,A40000,
http://opendatacommunities.org/id/london-borough-council/sutton,London Borough of Sutton,21/04/2021,10002266,109.99, AMZNMKTPLACE,"SPLIT - HP 912XL 3YP34AE SET OF 4 ORIGINAL CARTRIDGES XL FILL FOR HP OFFICEJET PRO 8010, 8012, 8014, 8015, 8020, 8022, 8023, 8024, 8025 (100%)",Peoples Services,Equipment And Materials Purchase,A40000,
http://opendatacommunities.org/id/london-borough-council/sutton,London Borough of Sutton,21/04/2021,10002266,5.10, AMZNMKTPLACE,SPLIT - PERSONAL MAR CHART (MEDICATION ADMINISTRATION RECORD) PAD A4 12PAGES 350GSM (75.89%),Peoples Services,Equipment And Materials Purchase,A40000,
http://opendatacommunities.org/id/london-borough-council/sutton,London Borough of Sutton,21/04/2021,10002266,1.62, AMZNMKTPLACE,BALANCING ENTRY AMOUNT (24.11%),Peoples Services,Equipment And Materials Purchase,A40000,
http://opendatacommunities.org/id/london-borough-council/sutton,London Borough of Sutton,21/04/2021,10002266,16.99, AMZNMKTPLACE,SPLIT - ABBEY PROFESSIONAL MOP AND BUCKET KIT WITH TWO MOP HEADS (YELLOW) (50%),Peoples Services,Equipment And Materials Purchase,A40000,
http://opendatacommunities.org/id/london-borough-council/sutton,London Borough of Sutton,21/04/2021,10002266,16.99, AMZNMKTPLACE,SPLIT - ABBEY PROFESSIONAL MOP AND BUCKET KIT WITH TWO MOP HEADS (RED) (50%),Peoples Services,Equipment And Materials Purchase,A40000,
http://opendatacommunities.org/id/london-borough-council/sutton,London Borough of Sutton,20/04/2021,10002266,15.35, AMZNMKTPLACE,"SPLIT - GLADE AIR FRESHENER, AEROSOL SPRAY, VANILLA CREAM, 300ML, PACK OF 12 (100%)",Peoples Services,Equipment And Materials Purchase,A40000,
http://opendatacommunities.org/id/london-borough-council/sutton,London Borough of Sutton,21/04/2021,10002266,10.52, AMZNMKTPLACE,SPLIT - [5 PACK] A4 FILE DIVIDERS 10 PART NUMBERED 1-10 | A4 SUBJECT DIVIDERS 10 PART NUMBERED 1-10 WITH MULTIPUNCHED REINFORCED COLOUR TABS 150GSM (71.66%),Peoples Services,Equipment And Materials Purchase,A40000,
http://opendatacommunities.org/id/london-borough-council/sutton,London Borough of Sutton,21/04/2021,10002266,4.16, AMZNMKTPLACE,BALANCING ENTRY AMOUNT (28.34%),Peoples Services,Equipment And Materials Purchase,A40000,
http://opendatacommunities.org/id/london-borough-council/sutton,London Borough of Sutton,17/04/2021,10002266,-12.00, PRETTYLITTLETHING.COM,PRETTY LITTLE THING REFUND FROM YOUNG PERSON AT THORNTON ROAD,Peoples Services,Equipment And Materials Purchase,A40000,
http://opendatacommunities.org/id/london-borough-council/sutton,London Borough of Sutton,16/04/2021,10002266,-16.67, PRETTYLITTLETHING.COM,PRETTY LITTLE THING REFUND FROM YOUNG PERSON AT THORNTON ROAD,Peoples Services,Equipment And Materials Purchase,A40000,
http://opendatacommunities.org/id/london-borough-council/sutton,London Borough of Sutton,16/04/2021,10002266,-16.67, PRETTYLITTLETHING.COM,PRETTY LITTLE THING REFUND FROM YOUNG PERSON AT THORNTON ROAD,Peoples Services,Equipment And Materials Purchase,A40000,
http://opendatacommunities.org/id/london-borough-council/sutton,London Borough of Sutton,26/03/2021,10002266,23.54, ASDA STORES,HOUSEHOLD ITEMS,Peoples Services,Equipment And Materials Purchase,A40000,
http://opendatacommunities.org/id/london-borough-council/sutton,London Borough of Sutton,25/03/2021,10002266,33.33, ARGOS LTD,EU - ACTIVITY,Peoples Services,Equipment And Materials Purchase,A40000,
http://opendatacommunities.org/id/london-borough-council/sutton,London Borough of Sutton,25/03/2021,10002266,34.86, WWW.PAPAJOHNS.CO.UK,TEAM MEETING,Peoples Services,Equipment And Materials Purchase,A40000,
http://opendatacommunities.org/id/london-borough-council/sutton,London Borough of Sutton,07/04/2021,10002266,-12.78, FEMME LUXE,FEMME LUXE FOR THORNTON ROAD - CLOTHING FOR YOUNG PERSON,Peoples Services,Equipment And Materials Purchase,A40000,
http://opendatacommunities.org/id/london-borough-council/sutton,London Borough of Sutton,07/04/2021,10002266,20.37, SP   TRAPSTAR LONDON,TRAPSTAR CLOTHING FOR YOUNG PERSON AT THORNTON ROAD,Peoples Services,Equipment And Materials Purchase,A40000,
http://opendatacommunities.org/id/london-borough-council/sutton,London Borough of Sutton,08/04/2021,10002266,12.07, AMZNMKTPLACE,"SPLIT - NAISSANCE VITAMIN E OIL (NO.807) 100ML - NATURAL, VEGAN, CRUELTY FREE, HEXANE FREE, NO GMO (35.84%)",Peoples Services,Equipment And Materials Purchase,A40000,
http://opendatacommunities.org/id/london-borough-council/sutton,London Borough of Sutton,08/04/2021,10002266,8.07, AMZNMKTPLACE,SPLIT - XMASIR 14 PIECES INDIA HENNA TATTOO STENCIL SET FOR WOMEN GIRLS HANDS FINGER BODY PAINT TEMPORARY TATTOO TEMPLATES 20 X 10.5CM (23.96%),Peoples Services,Equipment And Materials Purchase,A40000,
http://opendatacommunities.org/id/london-borough-council/sutton,London Borough of Sutton,08/04/2021,10002266,6.67, AMZNMKTPLACE,"SPLIT - L'OR�AL PARIS SMOOTH SUGAR CLEAR KIWI FACE AND LIP SCRUB, 50ML (19.8%)",Peoples Services,Equipment And Materials Purchase,A40000,
http://opendatacommunities.org/id/london-borough-council/sutton,London Borough of Sutton,08/04/2021,10002266,1.50, AMZNMKTPLACE,BALANCING ENTRY AMOUNT (4.46%),Peoples Services,Equipment And Materials Purchase,A40000,
http://opendatacommunities.org/id/london-borough-council/sutton,London Borough of Sutton,07/04/2021,10002266,7.82, AMZNMKTPLACE,"SPLIT - GIMARS 6CM SPRING-LOADED GATE LIGHT DUTY ALUMINUM LOCKING CARABINER FOR HOME, RV, FISHING, HIKING, TRAVELING AND KEYCHAIN (10) (65.28%)",Peoples Services,Equipment And Materials Purchase,A40000,
http://opendatacommunities.org/id/london-borough-council/sutton,London Borough of Sutton,07/04/2021,10002266,4.16, AMZNMKTPLACE,BALANCING ENTRY AMOUNT (34.72%),Peoples Services,Equipment And Materials Purchase,A40000,
http://opendatacommunities.org/id/london-borough-council/sutton,London Borough of Sutton,07/04/2021,10002266,33.66, PRETTYLITTLETHING.COM,PRETTY LITTLE THING CLOTHING FOR A YOUNG PERSON AT THORNTON ROAD,Peoples Services,Equipment And Materials Purchase,A40000,
http://opendatacommunities.org/id/london-borough-council/sutton,London Borough of Sutton,07/04/2021,10002266,28.31, FEMME LUXE,FEMME LUXE CLOTHING FOR YOUNG PERSON AT THORNTON ROAD,Peoples Services,Equipment And Materials Purchase,A40000,
http://opendatacommunities.org/id/london-borough-council/sutton,London Borough of Sutton,29/03/2021,10002266,16.35, AMAZON.CO.UK MU9150Q34,"SPLIT - DETTOL WIPES ANTIBACTERIAL BULK SURFACE CLEANING, MULTIPACK OF 6 X 126, TOTAL 756 WIPES (82.51%)",Peoples Services,Equipment And Materials Purchase,A40000,
http://opendatacommunities.org/id/london-borough-council/sutton,London Borough of Sutton,29/03/2021,10002266,3.47, AMAZON.CO.UK MU9150Q34,BALANCING ENTRY AMOUNT (17.49%),Peoples Services,Equipment And Materials Purchase,A40000,
http://opendatacommunities.org/id/london-borough-council/sutton,London Borough of Sutton,29/03/2021,10002266,12.01, AMZNMKTPLACE AMAZON.CO,"SPLIT - CUTLERY SET, BETTLIFE 16-PIECE TABLEWARE SET STAINLESS STEEL FLATWARE SILVERWARE SET WITH MIRROR POLISHING KNIFE AND FORK SET, SERVICE FOR 4, DISHWASH (87.44%)",Peoples Services,Equipment And Materials Purchase,A40000,
http://opendatacommunities.org/id/london-borough-council/sutton,London Borough of Sutton,29/03/2021,10002266,1.72, AMZNMKTPLACE AMAZON.CO,BALANCING ENTRY AMOUNT (12.56%),Peoples Services,Equipment And Materials Purchase,A40000,
http://opendatacommunities.org/id/london-borough-council/sutton,London Borough of Sutton,08/04/2021,10002266,34.07, AMZNMKTPLACE,"SPLIT - AIRSNIGI 4 PLAYER BADMINTON RACQUETS SET WITH NET FOR GARDEN, BADMINTON SET WITH 4 BADMINTON RACKETS AND 6 BIRDIES, INDOOR OUTDOOR GAMES FOR ADULTS AN (98.93%)",Peoples Services,Equipment And Materials Purchase,A40000,
http://opendatacommunities.org/id/london-borough-council/sutton,London Borough of Sutton,08/04/2021,10002266,0.37, AMZNMKTPLACE,BALANCING ENTRY AMOUNT (1.07%),Peoples Services,Equipment And Materials Purchase,A40000,
http://opendatacommunities.org/id/london-borough-council/sutton,London Borough of Sutton,08/04/2021,10002266,38.32, PRETTYLITTLETHING.COM,PRETTY LITTLE THING CLOTHING FOR A YOUNG PERSON AT THORNTON ROAD,Peoples Services,Equipment And Materials Purchase,A40000,
http://opendatacommunities.org/id/london-borough-council/sutton,London Borough of Sutton,05/04/2021,10002266,79.16, ASDA GROCERIES ONLINE,ASDA FOR THORNTON ROAD FOR A YOUNG PERSON.,Peoples Services,Equipment And Materials Purchase,A40000,
http://opendatacommunities.org/id/london-borough-council/sutton,London Borough of Sutton,03/04/2021,10002266,4.84, AMZNMKTPLACE,SPLIT - INTER-BRACE ORTHODONTIC INTERDENTAL TOOTHBRUSH +REFILL INTERBRACE (87.94%),Peoples Services,Equipment And Materials Purchase,A40000,
http://opendatacommunities.org/id/london-borough-council/sutton,London Borough of Sutton,03/04/2021,10002266,0.82, AMZNMKTPLACE,BALANCING ENTRY AMOUNT (12.06%),Peoples Services,Equipment And Materials Purchase,A40000,
http://opendatacommunities.org/id/london-borough-council/sutton,London Borough of Sutton,26/03/2021,10002266,8.40, ASDA STORES,SUPPLIES,Peoples Services,Equipment And Materials Purchase,A40000,
http://opendatacommunities.org/id/london-borough-council/sutton,London Borough of Sutton,16/04/2021,10002266,39.00, TICKETS 67861645,39.00 A40000 G03070 9999 LUNA CINEMAN TR.PDF,Peoples Services,Equipment And Materials Purchase,A40000,
http://opendatacommunities.org/id/london-borough-council/sutton,London Borough of Sutton,16/04/2021,10002266,15.00, TFL OYST PHOTOCARD,15.00 A40000 G03070 9999 PHOTO CARD LUCY PAID..PDF,Peoples Services,Equipment And Materials Purchase,A40000,
http://opendatacommunities.org/id/london-borough-council/sutton,London Borough of Sutton,18/04/2021,10002266,4.79, AMZNMKTPLACE,"34.09 A40000 G03070 9999 AMAZON TR.PDF - SPLIT - FOOD TEMPERATURE LOG BOOK: DAILY TEMPERATURE LOG SHEETS FOR RESTAURANTS, FOOD VENDORS, BAR, BUSINESS, STORAGE, AND MORE (26.1%)",Peoples Services,Equipment And Materials Purchase,A40000,
http://opendatacommunities.org/id/london-borough-council/sutton,London Borough of Sutton,18/04/2021,10002266,3.57, AMZNMKTPLACE,"34.09 A40000 G03070 9999 AMAZON TR.PDF - SPLIT - EXACOMPTA PREM'TOUCH PVC LEVER ARCH FILE, 2 RING, 50 MM SPINE, A4 - LILAC (19.46%)",Peoples Services,Equipment And Materials Purchase,A40000,
http://opendatacommunities.org/id/london-borough-council/sutton,London Borough of Sutton,18/04/2021,10002266,9.99, AMZNMKTPLACE,"34.09 A40000 G03070 9999 AMAZON TR.PDF - SPLIT - DOQAUS COOKING THERMOMETER, DIGITAL INSTANT READ FOOD THERMOMETER MEAT THERMOMETER KITCHEN THERMOMETER WITH FOLDABLE PROBE, BACKLIT LCD SCREEN, AUTO O (54.44%)",Peoples Services,Equipment And Materials Purchase,A40000,
http://opendatacommunities.org/id/london-borough-council/sutton,London Borough of Sutton,18/04/2021,10002266,33.15, AMZNMKTPLACE,33.15 A40000 G03070 9999 AMAZON THORNTON ROAD.PDF (100%),Peoples Services,Equipment And Materials Purchase,A40000,
http://opendatacommunities.org/id/london-borough-council/sutton,London Borough of Sutton,17/04/2021,10002266,12.99, AMZNMKTPLACE,34.09 A40000 G03070 9999 AMAZON TR.PDF (100%),Peoples Services,Equipment And Materials Purchase,A40000,
http://opendatacommunities.org/id/london-borough-council/sutton,London Borough of Sutton,16/04/2021,10002266,20.00, PARENTPAY E-COM R,20.00 A40000 G03070 9999 PARENT PAY HP THORNTON ROAD.PDF,Peoples Services,Equipment And Materials Purchase,A40000,
http://opendatacommunities.org/id/london-borough-council/sutton,London Borough of Sutton,22/04/2021,10002266,13.99, AMZNMKTPLACE,"SPLIT - MR.SIGA HEAVY DUTY SCRUB SPONGE - PACK OF 24, SIZE:11 X 7 X 3CM (25.94%)",Peoples Services,Equipment And Materials Purchase,A40000,
http://opendatacommunities.org/id/london-borough-council/sutton,London Borough of Sutton,22/04/2021,10002266,20.99, AMZNMKTPLACE,SPLIT - GEEZY 16 PIECE MELAMINE CAMPING CARAVAN PICNIC OUTDOOR DINING DINNER PLATE SET (38.92%),Peoples Services,Equipment And Materials Purchase,A40000,
http://opendatacommunities.org/id/london-borough-council/sutton,London Borough of Sutton,22/04/2021,10002266,18.95, AMZNMKTPLACE,"SPLIT - ARIEL ALL-IN-1 PODS, WASHING LIQUID LAUNDRY DETERGENT TABLETS/CAPSULES, 108 WASHES (54 X 2) (35.14%)",Peoples Services,Equipment And Materials Purchase,A40000,
http://opendatacommunities.org/id/london-borough-council/sutton,London Borough of Sutton,22/04/2021,10002266,5.99, AMZNMKTPLACE,SPLIT - A4 POLY PUNCHED POCKETS GLASS CLEAR HEAVY DUTY STRONG FILING GREEN SPINE TOP OPENING - PACK OF 100 (100%),Peoples Services,Equipment And Materials Purchase,A40000,
http://opendatacommunities.org/id/london-borough-council/sutton,London Borough of Sutton,26/03/2021,10002266,20.82, ARGOS LTD,HOUSEHOLD ITEMS,Peoples Services,Equipment And Materials Purchase,A40000,
http://opendatacommunities.org/id/london-borough-council/sutton,London Borough of Sutton,14/04/2021,10002266,36.62, PAYPAL  ARGOS EBAY EBA,PAYPAL ARGOS PAYMENT FOR CLIENT WITHIN THE LEAVING CARE SERVICES,Peoples Services,Equipment And Materials Purchase,A40000,
http://opendatacommunities.org/id/london-borough-council/sutton,London Borough of Sutton,12/04/2021,10002266,17.49, PRETTYLITTLETHING.COM,PRETTY LITTLE THING CLOTHING FOR YOUNG PERSON AT THORNTON ROAD,Peoples Services,Equipment And Materials Purchase,A40000,
http://opendatacommunities.org/id/london-borough-council/sutton,London Borough of Sutton,12/04/2021,10002266,1.72, AMZNMKTPLACE,"SPLIT - GARNIER MOISTURE BOMB TISSUE MASK, SAKURA HYDRATING TISSUE FACE SHEET MASK DULL SKIN, 28 G (84.84%)",Peoples Services,Equipment And Materials Purchase,A40000,
http://opendatacommunities.org/id/london-borough-council/sutton,London Borough of Sutton,12/04/2021,10002266,0.31, AMZNMKTPLACE,BALANCING ENTRY AMOUNT (15.16%),Peoples Services,Equipment And Materials Purchase,A40000,
http://opendatacommunities.org/id/london-borough-council/sutton,London Borough of Sutton,12/04/2021,10002266,67.19, ASDA GROCERIES ONLINE,ASDA PAYMENT FOR LEAVING CARE TEAM - GROCERIES FOR YOUNG PERSON,Peoples Services,Equipment And Materials Purchase,A40000,
http://opendatacommunities.org/id/london-borough-council/sutton,London Borough of Sutton,19/04/2021,10002266,110.51, ASDA GROCERIES ONLINE,110.51 A40000 G03070 9999 ASDA THORNTON ROAD.PDF,Peoples Services,Equipment And Materials Purchase,A40000,
http://opendatacommunities.org/id/london-borough-council/sutton,London Borough of Sutton,19/04/2021,10002266,-2.70, ASDA GROCERIES ONLINE,110.51 A40000 G03070 9999 ASDA THORNTON ROAD.PDF,Peoples Services,Equipment And Materials Purchase,A40000,
http://opendatacommunities.org/id/london-borough-council/sutton,London Borough of Sutton,18/04/2021,10002266,2.75, AMZNMKTPLACE,34.09 A40000 G03070 9999 AMAZON TR.PDF - SPLIT - FRIDGE TEMPERATURE RECORD BOOK LOG BOOK A5 (210 X 148MM) FOOD AND FRIDGE TEMPERATURE RECORDER. 32 PAGE. FOOD HYGIENE INFORMATION INSIDE BACK PAGE (100%),Peoples Services,Equipment And Materials Purchase,A40000,
http://opendatacommunities.org/id/london-borough-council/sutton,London Borough of Sutton,29/03/2021,10002266,7.07, AMZNMKTPLACE,"SPLIT - VINYL MULTI-PURPOSE GLOVES, POWDER FREE, DISPOSABLE, EXTRA STRONG - BOX OF 100 - CLEAR (MEDIUM) (100%)",Peoples Services,Equipment And Materials Purchase,A40000,
http://opendatacommunities.org/id/london-borough-council/sutton,London Borough of Sutton,29/03/2021,10002266,8.67, AMZNMKTPLACE AMAZON.CO,SPLIT - UMRIOX 12PCS A5 ZIPPER FILE BAGS EXTRA THICK MESH ZIP LOCK DOCUMENT FOLDERS PLASTIC WALLET HOLDER TRAVEL STORAGE POUCH FOR SCHOOL OFFICE SUPPLIES AND (83.35%),Peoples Services,Equipment And Materials Purchase,A40000,
http://opendatacommunities.org/id/london-borough-council/sutton,London Borough of Sutton,29/03/2021,10002266,1.73, AMZNMKTPLACE AMAZON.CO,BALANCING ENTRY AMOUNT (16.65%),Peoples Services,Equipment And Materials Purchase,A40000,
http://opendatacommunities.org/id/london-borough-council/sutton,London Borough of Sutton,29/03/2021,10002266,14.76, AMAZON.CO.UK MU9RI18T4,"SPLIT - ANDREX TOILET ROLL - GENTLE CLEAN TOILET PAPER, 45 TOILET ROLLS (80.98%)",Peoples Services,Equipment And Materials Purchase,A40000,
http://opendatacommunities.org/id/london-borough-council/sutton,London Borough of Sutton,29/03/2021,10002266,3.47, AMAZON.CO.UK MU9RI18T4,BALANCING ENTRY AMOUNT (19.02%),Peoples Services,Equipment And Materials Purchase,A40000,
http://opendatacommunities.org/id/london-borough-council/sutton,London Borough of Sutton,29/03/2021,10002266,9.02, AMAZON.CO.UK MU76F5QV4,"SPLIT - REGINA BLITZ HOUSEHOLD TOWEL, 8 ROLLS, 560 SUPER-SIZED SHEETS, TRIPLE LAYERED STRENGTH (72.25%)",Peoples Services,Equipment And Materials Purchase,A40000,
http://opendatacommunities.org/id/london-borough-council/sutton,London Borough of Sutton,29/03/2021,10002266,3.47, AMAZON.CO.UK MU76F5QV4,BALANCING ENTRY AMOUNT (27.75%),Peoples Services,Equipment And Materials Purchase,A40000,
http://opendatacommunities.org/id/london-borough-council/sutton,London Borough of Sutton,08/04/2021,10002266,28.07, AMZNMKTPLACE,"SPLIT - SENSIO FOOT SPA MASSAGER PEDICURE BATH - NINE ACCESSORIES - PAMPER YOUR FEET WITH HEAT, BUBBLES AND MASSAGING TOOLS - ALL IN ONE HOME SALON - THERAPEU (98.66%)",Peoples Services,Equipment And Materials Purchase,A40000,
http://opendatacommunities.org/id/london-borough-council/sutton,London Borough of Sutton,08/04/2021,10002266,0.38, AMZNMKTPLACE,BALANCING ENTRY AMOUNT (1.34%),Peoples Services,Equipment And Materials Purchase,A40000,
http://opendatacommunities.org/id/london-borough-council/sutton,London Borough of Sutton,29/03/2021,10002266,11.25, AMZNMKTPLACE AMAZON.CO,SPLIT - SURF TROPICAL FRAGRANCE LILY AND YLANG-YLANG BIOLOGICAL CLEANING FABRIC SOLUTION LIQUID DETERGENT FOR CLOTHES BULK 2.975 LITRE PACK (85 WASHES) (134.57%),Peoples Services,Equipment And Materials Purchase,A40000,
http://opendatacommunities.org/id/london-borough-council/sutton,London Borough of Sutton,29/03/2021,10002266,-2.89, AMZNMKTPLACE AMAZON.CO,BALANCING ENTRY AMOUNT (-34.57%),Peoples Services,Equipment And Materials Purchase,A40000,
http://opendatacommunities.org/id/london-borough-council/sutton,London Borough of Sutton,08/04/2021,10002266,1.49, AMZNMKTPLACE,BALANCING ENTRY AMOUNT (1.49%),Peoples Services,Equipment And Materials Purchase,A40000,
http://opendatacommunities.org/id/london-borough-council/sutton,London Borough of Sutton,08/04/2021,10002266,5.37, AMZNMKTPLACE,"SPLIT - L'OREAL PARIS PURE CLAY BLACK CHARCOAL DETOX FACE MASK, DEEP CLEANSING SKIN CARE FOR ALL SKIN TYPES 50 ML (15.94%)",Peoples Services,Equipment And Materials Purchase,A40000,
http://opendatacommunities.org/id/london-borough-council/sutton,London Borough of Sutton,25/04/2021,10002266,21.88, AMZNMKTPLACE AMAZON.CO,SPLIT - FRAMELESS CIRCLE BATHROOM GLASS LOOK ACRYLIC MIRROR - LIGHTWEIGHT SHAVING MIRROR - STICK ON MIRROR (64.77%),Peoples Services,Equipment And Materials Purchase,A40000,
http://opendatacommunities.org/id/london-borough-council/sutton,London Borough of Sutton,25/04/2021,10002266,11.90, AMZNMKTPLACE AMAZON.CO,"SPLIT - NYXI 4 TIER SHOE RACK EXTENDABLE & STACKABLE, QUICK ASSEMBLY NO TOOLS REQUIRED - HOLDS 12 PAIRS - (L) 65CM X (W) 16.5CM X (H) 50CM (WHITE) (35.23%)",Peoples Services,Equipment And Materials Purchase,A40000,
http://opendatacommunities.org/id/london-borough-council/sutton,London Borough of Sutton,25/04/2021,10002266,8.69, AMZNMKTPLACE AMAZON.CO,"SPLIT - EXTENSION LEAD UK PIN PLUG AND CABLE, 4 GANG WAY 2M POWER ADAPTER, MULTI SOCKET MAINS STRIP WHITE (1 PACK) (100%)",Peoples Services,Equipment And Materials Purchase,A40000,
http://opendatacommunities.org/id/london-borough-council/sutton,London Borough of Sutton,25/04/2021,10002266,6.75, AMZNMKTPLACE AMAZON.CO,"SPLIT - DURACELL PLUS AAA ALKALINE BATTERIES [PACK OF 12], 1,5 VOLTS LR03 MN2400 (100%)",Peoples Services,Equipment And Materials Purchase,A40000,
http://opendatacommunities.org/id/london-borough-council/sutton,London Borough of Sutton,25/04/2021,10002266,89.83, AMAZON.CO.UK M47M06I04,"SPLIT - RING VIDEO DOORBELL BY AMAZON | 1080P HD VIDEO, ADVANCED MOTION DETECTION, AND EASY INSTALLATION (2ND GEN) | WITH 30-DAY FREE TRIAL OF RING PROTECT PL (95.57%)",Peoples Services,Equipment And Materials Purchase,A40000,
http://opendatacommunities.org/id/london-borough-council/sutton,London Borough of Sutton,25/04/2021,10002266,4.16, AMAZON.CO.UK M47M06I04,BALANCING ENTRY AMOUNT (4.43%),Peoples Services,Equipment And Materials Purchase,A40000,
http://opendatacommunities.org/id/london-borough-council/sutton,London Borough of Sutton,30/03/2021,10002266,13.86, AMAZON.CO.UK MU0TZ56U4,"SPLIT - LENOR FABRIC CONDITIONER, WASHING LIQUID LAUNDRY, SPRING AWAKENING SCENT, 332 WASHES (4 X 3 LITRE) (79.99%)",Peoples Services,Equipment And Materials Purchase,A40000,
http://opendatacommunities.org/id/london-borough-council/sutton,London Borough of Sutton,30/03/2021,10002266,3.47, AMAZON.CO.UK MU0TZ56U4,BALANCING ENTRY AMOUNT (20.01%),Peoples Services,Equipment And Materials Purchase,A40000,
http://opendatacommunities.org/id/london-borough-council/sutton,London Borough of Sutton,08/04/2021,10002266,13.07, AMZNMKTPLACE,SPLIT - LICTIN TEMPORARY TATTOO KIT - TEMPORARY ART TATTOOS 6 PCS TEMPORARY TATTOO PASTE CONE WITH 4 PLASTIC NOZZLES AND 2 PCS TEMPORARY TATTOOS STENCILS FOR (13.09%),Peoples Services,Equipment And Materials Purchase,A40000,
http://opendatacommunities.org/id/london-borough-council/sutton,London Borough of Sutton,08/04/2021,10002266,7.15, AMZNMKTPLACE,"SPLIT - GRITIN RESISTANCE BANDS, [SET OF 5] SKIN-FRIENDLY RESISTANCE FITNESS EXERCISE LOOP BANDS WITH 5 DIFFERENT RESISTANCE LEVELS - FREE CARRYING CASE INCLU (7.16%)",Peoples Services,Equipment And Materials Purchase,A40000,
http://opendatacommunities.org/id/london-borough-council/sutton,London Borough of Sutton,08/04/2021,10002266,33.07, AMZNMKTPLACE,"SPLIT - LAGUNAMOON GEL NAIL POLISH SET WITH 36W NAIL LAMP,MANICURE SALON SET INCLUDES 6 COLOURS BLACK WHITE NUDE PINK BLING GEL POLISH,GEL BASE COAT AND TOP C (33.12%)",Peoples Services,Equipment And Materials Purchase,A40000,
http://opendatacommunities.org/id/london-borough-council/sutton,London Borough of Sutton,08/04/2021,10002266,45.07, AMZNMKTPLACE,SPLIT - MONOPOLY EMPIRE GAME (45.14%),Peoples Services,Equipment And Materials Purchase,A40000,
http://opendatacommunities.org/id/london-borough-council/sutton,London Borough of Sutton,26/03/2021,10002266,2.50, HI HEELS,SUPPLIES,Peoples Services,Other Supplies & Services,A44291,
http://opendatacommunities.org/id/london-borough-council/sutton,London Borough of Sutton,11/04/2021,10002266,5.00, ASDA STORES 7134,SUPPLIES,Peoples Services,Other Supplies & Services,A44291,
http://opendatacommunities.org/id/london-borough-council/sutton,London Borough of Sutton,05/04/2021,10002266,-4.12, ASDA GROCERIES ONLINE,ASDA REFUND,Peoples Services,Miscellaneous Expenses,A49000,
http://opendatacommunities.org/id/london-borough-council/sutton,London Borough of Sutton,22/04/2021,10002266,8.19, AMZNMKTPLACE,SPLIT - CTL471 USB CHARGING CABLE REPLACEMENT DATA SYNC POWER SUPPLY CORD COMPATIBLE WITH WACOM-INTUOS CTL480 CTL490 CTL690 CTH480 CTH490 CTH680 CTH690 AND WA (66.32%),Peoples Services,Miscellaneous Expenses,A49000,
http://opendatacommunities.org/id/london-borough-council/sutton,London Borough of Sutton,22/04/2021,10002266,4.16, AMZNMKTPLACE,BALANCING ENTRY AMOUNT (33.68%),Peoples Services,Miscellaneous Expenses,A49000,
http://opendatacommunities.org/id/london-borough-council/sutton,London Borough of Sutton,29/03/2021,10002266,-0.74, ASDA GROCERIES ONLINE,ASDA REFUND A49000 0307,Peoples Services,Miscellaneous Expenses,A49000,
http://opendatacommunities.org/id/london-borough-council/sutton,London Borough of Sutton,29/03/2021,10002266,-2.92, ASDA GROCERIES ONLINE, ASDA REFUND,Peoples Services,Miscellaneous Expenses,A49000,
http://opendatacommunities.org/id/london-borough-council/sutton,London Borough of Sutton,29/03/2021,10002266,71.27, ASDA GROCERIES ONLINE,ASDA,Peoples Services,C.C.A Food & Clothing,A61006,
http://opendatacommunities.org/id/london-borough-council/sutton,London Borough of Sutton,25/03/2021,10002266,-33.32, FEMME LUXE,FEMMELUXE,Peoples Services,Client Care/Assistance,A61011,
http://opendatacommunities.org/id/london-borough-council/sutton,London Borough of Sutton,07/04/2021,10002266,-170.00, CURRYS ONLINE,CURRYS REFUND FOR LEAVING CARE TEAM FOR A YOUNG PERSON,Peoples Services,Equipment And Materials Purchase,A40000,
http://opendatacommunities.org/id/london-borough-council/sutton,London Borough of Sutton,07/04/2021,10002266,170.00, CURRYS ONLINE,CURRYS FOR LEAVING CARE TEAM FOR A YOUNG PERSON,Peoples Services,Equipment And Materials Purchase,A40000,
http://opendatacommunities.org/id/london-borough-council/sutton,London Borough of Sutton,15/04/2021,10002266,250.00, L & S FURNITURE LTD T/,SETTING UP MKM,Peoples Services,Set Up Costs - Children Leaving Care,A61021,
http://opendatacommunities.org/id/london-borough-council/sutton,London Borough of Sutton,17/04/2021,10002266,159.90, ZOOM.US 888-799-9666,ZOOM SUBSCRIPTION FOR REFERRAL AND ASSESSMENT TEAM,Peoples Services,Subscriptions,A47010,
http://opendatacommunities.org/id/london-borough-council/sutton,London Borough of Sutton,30/03/2021,10002266,159.90, ZOOM.US 888-799-9666,ZOOM,Peoples Services,Subscriptions,A47010,
http://opendatacommunities.org/id/london-borough-council/sutton,London Borough of Sutton,31/03/2021,10002266,347.08, PREMIER INN,PREMIER INN,Peoples Services,C.C.A Travel & Subsistance,A61010,
http://opendatacommunities.org/id/london-borough-council/sutton,London Borough of Sutton,31/03/2021,10002266,157.08, PREMIER INN,PREMIER INN,Peoples Services,C.C.A Travel & Subsistance,A61010,
http://opendatacommunities.org/id/london-borough-council/sutton,London Borough of Sutton,14/04/2021,10002266,25.00, PUTT IN THE PARK LTD,COLCHESTER PUTT IN THE PARK GOLF,Peoples Services,Client Care/Assistance,A61011,
http://opendatacommunities.org/id/london-borough-council/sutton,London Borough of Sutton,06/04/2021,10002266,3.67, GEN REGISTER OFFICE,REFUND FOR BIRTH CERTIFICATE FOR LOOKED AFTER TEAM,Peoples Services,Equipment And Materials Purchase,A40000,
http://opendatacommunities.org/id/london-borough-council/sutton,London Borough of Sutton,26/03/2021,10002266,2.00, POUNDLAND LTD 1211,BROWN WRAPPING PAPER,Peoples Services,Equipment And Materials Purchase,A40000,
http://opendatacommunities.org/id/london-borough-council/sutton,London Borough of Sutton,19/04/2021,10002266,4.00, THE WORKS,WRAPPING PAPER,Peoples Services,Equipment And Materials Purchase,A40000,
http://opendatacommunities.org/id/london-borough-council/sutton,London Borough of Sutton,29/03/2021,10002266,18.33, RBK REGISTRARS,REFUND,Peoples Services,Equipment And Materials Purchase,A40000,
http://opendatacommunities.org/id/london-borough-council/sutton,London Borough of Sutton,09/04/2021,10002266,23.47, MINICABIT,MINICABIT FOR CLIENT TO TRAVEL IN LOOKED AFTER TEAM,Peoples Services,Miscellaneous Expenses,A49000,
http://opendatacommunities.org/id/london-borough-council/sutton,London Borough of Sutton,17/04/2021,10002266,20.00, OYSTER AUTO TOPUP,OYSTER CARD TOP UP,Peoples Services,Miscellaneous Expenses,A49000,
http://opendatacommunities.org/id/london-borough-council/sutton,London Borough of Sutton,24/04/2021,10002266,20.00, OYSTER BUS AUTOLOAD,OYSTER CARD TOP UP,Peoples Services,Miscellaneous Expenses,A49000,
http://opendatacommunities.org/id/london-borough-council/sutton,London Borough of Sutton,26/03/2021,10002266,16.67, PARENTPAY E-COM R,OYSTER,Peoples Services,Miscellaneous Expenses,A49000,
http://opendatacommunities.org/id/london-borough-council/sutton,London Borough of Sutton,16/04/2021,10002266,121.43, HOTEL ON BOOKING.COM,HOTEL INDIGO - CHESTER - LT,Peoples Services,Bed & Breakfast,A56000,
http://opendatacommunities.org/id/london-borough-council/sutton,London Borough of Sutton,08/04/2021,10002266,40.83, PREMIER INN,PREIMER INN STAY FOR LOOKED AFTER TEAM FOR A FAMILY TO STAY OVER,Peoples Services,Client Care/Assistance,A61011,
http://opendatacommunities.org/id/london-borough-council/sutton,London Borough of Sutton,19/04/2021,10002266,41.67, STAGECOACH MERTON PARK,STAGE COACH PAYMENT FOR YOUNG PERSON WITHIN THE LOOKED AFTER CHILDREN'S TEAM,Peoples Services,Client Care/Assistance,A61011,
http://opendatacommunities.org/id/london-borough-council/sutton,London Borough of Sutton,13/08/2020,10002266,-100.00, WWW.KENT.GOV.UK,REFUND,Peoples Services,Client Care/Assistance,A61011,
http://opendatacommunities.org/id/london-borough-council/sutton,London Borough of Sutton,09/04/2021,10002266,122.50, PREMIER INN,PREMIER INN STAY FOR CLIENT IN LOOKED AFTER TEAM,Peoples Services,Client Care/Assistance,A61011,
http://opendatacommunities.org/id/london-borough-council/sutton,London Borough of Sutton,09/04/2021,10002266,-122.50, PREMIER INN,PREIMER INN STAY FOR CLIENT IN LOOKED AFTER TEAM,Peoples Services,Client Care/Assistance,A61011,
http://opendatacommunities.org/id/london-borough-council/sutton,London Borough of Sutton,09/04/2021,10002266,-40.83, PREMIER INN,PREMIER INN STAY FOR CLIENT IN LOOKED AFTER TEAM,Peoples Services,Client Care/Assistance,A61011,
http://opendatacommunities.org/id/london-borough-council/sutton,London Borough of Sutton,09/04/2021,10002266,72.82, MENTIMETER,MENTIMETER PAYMENT FOR A YP,Peoples Services,Staff Development And Training,A15022,
http://opendatacommunities.org/id/london-borough-council/sutton,London Borough of Sutton,08/04/2021,10002266,344.28, WF  WAYFAIR3521836614,WAYFAIR PAYMENT FOR LEGAL TEAM - ITEMS FOR YOUNG PERSON,Peoples Services,Equipment And Materials Purchase,A40000,
http://opendatacommunities.org/id/london-borough-council/sutton,London Borough of Sutton,08/04/2021,10002266,27.50, RB KINGSTON GUILDHALL2,SUTTON BIRTH CERT FOR LEGAL REASONS,Peoples Services,Equipment And Materials Purchase,A40000,
http://opendatacommunities.org/id/london-borough-council/sutton,London Borough of Sutton,06/04/2021,10002266,61.46, WWW.WIGHTLINK.CO.UK,WHITELINK FERRY FOR TRANSPORT FOR SOCIAL WORKER GOING TO VISIT YOUNG PERSON,Peoples Services,Miscellaneous Expenses,A49000,
http://opendatacommunities.org/id/london-borough-council/sutton,London Borough of Sutton,12/04/2021,10002266,2.00, FOREIGN EXCHANGE FEE,FOREIGN EXCHANGE FEE,Peoples Services,Miscellaneous Expenses,A49000,
http://opendatacommunities.org/id/london-borough-council/sutton,London Borough of Sutton,11/04/2021,10002266,-12.17, MINICABIT,MINICABIT FOR CLIENT TO TRAVEL IN COURT TEAM,Peoples Services,Miscellaneous Expenses,A49000,
http://opendatacommunities.org/id/london-borough-council/sutton,London Borough of Sutton,11/04/2021,10002266,-11.31, MINICABIT,MINICABIT FOR CLIENT TO TRAVEL IN COURT TEAM,Peoples Services,Miscellaneous Expenses,A49000,
http://opendatacommunities.org/id/london-borough-council/sutton,London Borough of Sutton,09/04/2021,10002266,20.50, WWW.HOVERTRAVEL.COM,HOVER TRAVEL FOR SOCIAL WORKER TO TRAVEL FOR VISIT,Peoples Services,C.C.A Travel & Subsistance,A61010,
http://opendatacommunities.org/id/london-borough-council/sutton,London Borough of Sutton,26/03/2021,10002266,120.83, VOKES TAXIS LIMITE,WINDMILL TAXIS,Peoples Services,C.C.A Travel & Subsistance,A61010,
http://opendatacommunities.org/id/london-borough-council/sutton,London Borough of Sutton,26/03/2021,10002266,120.83, VOKES TAXIS LIMITE,WINDMILL TAXIS,Peoples Services,C.C.A Travel & Subsistance,A61010,
http://opendatacommunities.org/id/london-borough-council/sutton,London Borough of Sutton,26/03/2021,10002266,26.67, HOLLISTER,VOKE.,Peoples Services,C.C.A Travel & Subsistance,A61010,
http://opendatacommunities.org/id/london-borough-council/sutton,London Borough of Sutton,26/03/2021,10002266,-104.17, VOKES TAXIS LIMITE,VOKE.,Peoples Services,C.C.A Travel & Subsistance,A61010,
http://opendatacommunities.org/id/london-borough-council/sutton,London Borough of Sutton,01/04/2021,10002266,20.50, WWW.HOVERTRAVEL.COM,HOVER TRAVEL.,Peoples Services,C.C.A Travel & Subsistance,A61010,
http://opendatacommunities.org/id/london-borough-council/sutton,London Borough of Sutton,21/04/2021,10002266,20.50, WWW.HOVERTRAVEL.COM,HOVER TRAVEL FOR SOCIAL WORKER TO TRAVEL TO A VISIT WITHIN COURT TEAM,Peoples Services,C.C.A Travel & Subsistance,A61010,
http://opendatacommunities.org/id/london-borough-council/sutton,London Borough of Sutton,16/04/2021,10002266,24.60, WWW.HOVERTRAVEL.COM,TRAVEL,Peoples Services,C.C.A Travel & Subsistance,A61010,
http://opendatacommunities.org/id/london-borough-council/sutton,London Borough of Sutton,14/04/2021,10002266,149.98, ARGOS LTD,ARGOS PAYMENT FOR CLIENT WITHIN THE COURT TEAM (LEGAL),Peoples Services,Client Care/Assistance,A61011,
http://opendatacommunities.org/id/london-borough-council/sutton,London Borough of Sutton,14/04/2021,10002266,45.00, HM PASSPORT OFFICE,PASSPORT OFFICE PAYMENT FOR PASSPORT APPLICATION FOR YOUNG PERSON WITHIN THE COURT TEAM,Peoples Services,Client Care/Assistance,A61011,
http://opendatacommunities.org/id/london-borough-council/sutton,London Borough of Sutton,13/04/2021,10002266,148.80, WWW.COURIEREXPERT.CO.U,COURIER EXPERT TO MOVE BELONGINGS TO NEW PLACEMENT FOR YOUNG PERSON,Peoples Services,Client Care/Assistance,A61011,
http://opendatacommunities.org/id/london-borough-council/sutton,London Borough of Sutton,14/04/2021,10002266,94.58, PREMIER INN,PREMIER INN STAY FOR CLIENTS WITHIN NRPF,Peoples Services,C.C.A Rent & Utilities,A61009,
http://opendatacommunities.org/id/london-borough-council/sutton,London Borough of Sutton,14/04/2021,10002266,287.08, PREMIER INN,PREMIER INN STAY FOR CLIENTS WITHIN NRPF,Peoples Services,C.C.A Rent & Utilities,A61009,
http://opendatacommunities.org/id/london-borough-council/sutton,London Borough of Sutton,14/04/2021,10002266,395.00, PREMIER INN,PREMIER INN STAY FOR CLIENTS WITHIN NRPF,Peoples Services,C.C.A Rent & Utilities,A61009,
http://opendatacommunities.org/id/london-borough-council/sutton,London Borough of Sutton,23/04/2021,10002266,60.00, FACEBK  Q9NTMZAH32,FACEBOOK ADVERTISING FOR FOSTERING RECRUITMENT,Peoples Services,Recruitment Expenses,A15026,
http://opendatacommunities.org/id/london-borough-council/sutton,London Borough of Sutton,16/04/2021,10002266,60.00, FACEBK  C3C4FZ2H32,FACEBOOK ADVERTISING FOR FOSTERING RECRUITMENT CAMPAIGN,Peoples Services,Recruitment Expenses,A15026,
http://opendatacommunities.org/id/london-borough-council/sutton,London Borough of Sutton,27/03/2021,10002266,52.68, FACEBK  LPV7A2FG32,FACEBOOK ADVERTISING (FOSTERING RECRUITMENT),Peoples Services,Publicity,A44266,
http://opendatacommunities.org/id/london-borough-council/sutton,London Borough of Sutton,24/04/2021,10002266,59.95, ZOOM.US 888-799-9666,ZOOM SUBSCRIPTION FOR LOCAL SAFEGUARDING CHILDREN BOARD (ZOOM MEETINGS),Peoples Services,Equipment And Materials Purchase,A40000,
http://opendatacommunities.org/id/london-borough-council/sutton,London Borough of Sutton,06/04/2021,10002266,20.83, GEN REGISTER OFFICE,GENERAL REGISTER OFFICE BIRTH CERTIFICATE FOR LEGAL PURPOSES,Peoples Services,Equipment And Materials Purchase,A40000,
http://opendatacommunities.org/id/london-borough-council/sutton,London Borough of Sutton,13/04/2021,10002266,11.99, ZOOM.US 888-799-9666,ZOOM SUBSCRIPTION FOR CICC,Peoples Services,LAC - Education,A44280,
http://opendatacommunities.org/id/london-borough-council/sutton,London Borough of Sutton,24/04/2021,10002266,43.28, CS BOOTS GIFT CARDS, BOOTS GIFT CARS THE THE POLICY AND RESEARCH TEAM - GIFTS FOR YOUNG PERSON,Peoples Services,Miscellaneous Expenses,A49000,
http://opendatacommunities.org/id/london-borough-council/sutton,London Borough of Sutton,29/03/2021,10002266,30.00, LB CROYDON,BIRTH CERT CROYDON,Peoples Services,Equipment And Materials Purchase,A40000,
http://opendatacommunities.org/id/london-borough-council/sutton,London Borough of Sutton,23/04/2021,10002266,220.82, CURRYS ONLINE, CURRYS FOR CLIENT WITHIN THE GREEN WEST LOCALITY TEAM,Peoples Services,Equipment And Materials Purchase,A40000,
http://opendatacommunities.org/id/london-borough-council/sutton,London Borough of Sutton,23/04/2021,10002266,16.67, WALLINGTON CARS AND CO,WALLINGTON CARS FOR CLIENT WITHIN THE GREEN WEST LOCALITY TEAM,Peoples Services,Miscellaneous Expenses,A49000,
http://opendatacommunities.org/id/london-borough-council/sutton,London Borough of Sutton,23/04/2021,10002266,78.43, GAR HOTEL RES,HOLIDAY INN - GUEST RESERVATIONS FOR CLIENT WITHIN GREEN WEST LOCALITY,Peoples Services,Bed & Breakfast,A56000,
http://opendatacommunities.org/id/london-borough-council/sutton,London Borough of Sutton,22/04/2021,10002266,82.42, GAR HOTEL RES, HOLIDAY INN - GUEST RESERVATIONS FOR CLIENT WITHIN GREEN WEST LOCALITY,Peoples Services,Bed & Breakfast,A56000,
http://opendatacommunities.org/id/london-borough-council/sutton,London Borough of Sutton,21/04/2021,10002266,92.41, GAR HOTEL RES,HOLIDAY INN - GUEST RESERVATIONS FOR CLIENT WITHIN GREEN WEST LOCALITY,Peoples Services,Bed & Breakfast,A56000,
http://opendatacommunities.org/id/london-borough-council/sutton,London Borough of Sutton,22/04/2021,10002266,13.85, MINICABIT,MINI CAB FOR CLIENT WITHIN THE GREEN WEST LOCALITY,Peoples Services,C.C.A Travel & Subsistance,A61010,
http://opendatacommunities.org/id/london-borough-council/sutton,London Borough of Sutton,20/04/2021,10002266,103.30, DECATHLON UK LIMITED,DECATHLON PAYMENT FOR YOUNG PERSON WITHIN BLUE CENTRAL LOCALITY,Peoples Services,Equipment And Materials Purchase,A40000,
http://opendatacommunities.org/id/london-borough-council/sutton,London Borough of Sutton,20/04/2021,10002266,18.32, DECATHLON UK LIMITED,DECATHLON PAYMENT FOR YOUNG PERSON WITHIN BLUE CENTRAL LOCALITY,Peoples Services,Equipment And Materials Purchase,A40000,
http://opendatacommunities.org/id/london-borough-council/sutton,London Borough of Sutton,01/04/2021,10002266,89.03, STORAGEMART UK A-35098,STORAGE MART,Peoples Services,Equipment And Materials Purchase,A40000,
http://opendatacommunities.org/id/london-borough-council/sutton,London Borough of Sutton,01/04/2021,10002266,211.67, CURRYS ONLINE,CURRYS,Peoples Services,"Grants, Contributions & Donations",A47005,
http://opendatacommunities.org/id/london-borough-council/sutton,London Borough of Sutton,01/04/2021,10002266,98.00, SQ  ACCESS LOCKS & SEC,EMERGENCY LOCKSMITHS FOR CLIENT (743631),Peoples Services,Miscellaneous Expenses,A49000,
http://opendatacommunities.org/id/london-borough-council/sutton,London Borough of Sutton,15/04/2021,10002266,1.46, WILKO RETAIL LIMITED,WHITE BOARD FOR CLIENTS,Peoples Services,Miscellaneous Expenses,A49000,
http://opendatacommunities.org/id/london-borough-council/sutton,London Borough of Sutton,07/04/2021,10002266,66.67, 1A IDEAL LOCKSMITHS LT,EMERGENCY LOCKSMITHS FOR CLIENT (307623),Peoples Services,Miscellaneous Expenses,A49000,
http://opendatacommunities.org/id/london-borough-council/sutton,London Borough of Sutton,21/04/2021,10002266,14.17, SAINSBURYS SACAT 2006,COOKERY INGREDIENTS,Peoples Services,Equipment Purchase & Hire,A40050,
http://opendatacommunities.org/id/london-borough-council/sutton,London Borough of Sutton,14/04/2021,10002266,171.68, AMZNMKTPLACE,PAXTON NET2 DESKTOP IT,Health and Wellbeing,Equipment And Materials Purchase,A40000,
http://opendatacommunities.org/id/london-borough-council/sutton,London Borough of Sutton,23/04/2021,10002266,81.00, AUTHSMTP.COM EMAIL,RENEWAL AUTHSMTP ACCOUNT IT,Health and Wellbeing,Registration & Licence Fees Payable,A44267,
http://opendatacommunities.org/id/london-borough-council/sutton,London Borough of Sutton,15/04/2021,10002266,16.62, MICRODREAM.CO.UK,ONLINE PURCHASES,Health and Wellbeing,ICT Expenses,A45009,
http://opendatacommunities.org/id/london-borough-council/sutton,London Borough of Sutton,30/03/2021,10002266,90.81, AMAZON.CO.UK MU01T16E4,"""NETGEAR JGS524-200EUS",Health and Wellbeing,IT Software Maintenance,A45045,
http://opendatacommunities.org/id/london-borough-council/sutton,London Borough of Sutton,29/03/2021,10002266,29.88, AMZNMKTPLACE AMAZON.CO,ONLINE PURCHASES,Health and Wellbeing,IT Software Maintenance,A45045,
http://opendatacommunities.org/id/london-borough-council/sutton,London Borough of Sutton,29/03/2021,10002266,3.32, AMZNMKTPLACE AMAZON.CO,ONLINE PURCHASES,Health and Wellbeing,IT Software Maintenance,A45045,
http://opendatacommunities.org/id/london-borough-council/sutton,London Borough of Sutton,21/04/2021,10002266,275.00, SAGE (UK) LTD,SAGE LICENCES FOR ONLINE CLASSES,Health and Wellbeing,Training/Workshops Non Staff,A44160,
http://opendatacommunities.org/id/london-borough-council/sutton,London Borough of Sutton,29/03/2021,10002266,405.26, FACEBK FNK3WYE6A2,FACEBOOK SUMMER FB LIKES 486.31,Health and Wellbeing,Publicity,A44266,
http://opendatacommunities.org/id/london-borough-council/sutton,London Borough of Sutton,25/03/2021,10002266,104.17, WWW.INSTANTPRINT.C,INSTANTPRINT 250321 SUMMER FLYERS 125.00,Health and Wellbeing,Publicity,A44266,
http://opendatacommunities.org/id/london-borough-council/sutton,London Borough of Sutton,30/03/2021,10002266,97.67, MAILCHIMP,MAILCHIMP 300321 117.21,Health and Wellbeing,Subscriptions,A47010,
http://opendatacommunities.org/id/london-borough-council/sutton,London Borough of Sutton,21/04/2021,10002266,18.72, AMAZON.CO.UK M41UC9204,"SPLIT - A THERAPEUTIC TREASURE DECK OF GROUNDING, SOOTHING, COPING AND REGULATING CARDS (THERAPEUTIC TREASURES COLLECTION) (100%)",Peoples Services,LAC - Education,A44280,
http://opendatacommunities.org/id/london-borough-council/sutton,London Borough of Sutton,21/04/2021,10002266,18.72, AMAZON.CO.UK M437L6SR4,"SPLIT - A THERAPEUTIC TREASURE DECK OF GROUNDING, SOOTHING, COPING AND REGULATING CARDS (THERAPEUTIC TREASURES COLLECTION) (100%)",Peoples Services,LAC - Education,A44280,
http://opendatacommunities.org/id/london-borough-council/sutton,London Borough of Sutton,21/04/2021,10002266,18.72, AMAZON.CO.UK M417O3SE4,"SPLIT - A THERAPEUTIC TREASURE DECK OF GROUNDING, SOOTHING, COPING AND REGULATING CARDS (THERAPEUTIC TREASURES COLLECTION) (100%)",Peoples Services,LAC - Education,A44280,
http://opendatacommunities.org/id/london-borough-council/sutton,London Borough of Sutton,20/04/2021,10002266,12.91, AMZNMKTPLACE AMAZON.CO,"SPLIT - STICKY NOTES SET, HOMMIE SELF-STICK NOTES PADS BUNDLE, WITH 12 COLORFUL WATER-BASED INK PENS, 50 PCS COLOR PAPER CLIPS, PAGE MARKERS WITH WRITABLE LAB (18.64%)",Peoples Services,LAC - Education,A44280,
http://opendatacommunities.org/id/london-borough-council/sutton,London Borough of Sutton,20/04/2021,10002266,5.40, AMZNMKTPLACE AMAZON.CO,"SPLIT - 2021 DIARY - ACADEMIC WEEKLY & MONTHLY DIARY WITH TABS, A5 WEEK TO VIEW FROM JAN. - DEC. 2021, HARDCOVER, INNER POCKET, THICK PAPER, BANDED, TWIN-WIRE (7.8%)",Peoples Services,LAC - Education,A44280,
http://opendatacommunities.org/id/london-borough-council/sutton,London Borough of Sutton,20/04/2021,10002266,8.31, AMZNMKTPLACE AMAZON.CO,SPLIT - EASTHILL BIG CAPACITY PENCIL CASE LARGE PENCIL PEN POUCH BAG HIGH STORAGE CASE MIDDLE SCHOOL COLLEGE OFFICE ORGANIZER FOR STUDENT TEENS GIRLS ADULTS (12%),Peoples Services,LAC - Education,A44280,
http://opendatacommunities.org/id/london-borough-council/sutton,London Borough of Sutton,20/04/2021,10002266,7.29, AMZNMKTPLACE AMAZON.CO,"SPLIT - PENCIL SHARPENER, 12PCS DOUBLE HOLE MANUAL SHARPENER FOR PENCILS, COLORED HAND PENCIL SHARPENER WITH RUST-PROOF SPIRAL BLADE FOR KIDS SCHOOL OFFICE HO (10.53%)",Peoples Services,LAC - Education,A44280,
http://opendatacommunities.org/id/london-borough-council/sutton,London Borough of Sutton,20/04/2021,10002266,7.06, AMZNMKTPLACE AMAZON.CO,"SPLIT - PLASTIC WALLETS - PACK OF 10 A4 FOLDERS -13 X 9.2 INCH ASSORTED COLOURS WITH LABEL POCKET AND SNAP BUTTON-FOR HOME, OFFICE, SCHOOL AND TRAVEL. (10.19%)",Peoples Services,LAC - Education,A44280,
http://opendatacommunities.org/id/london-borough-council/sutton,London Borough of Sutton,20/04/2021,10002266,9.15, AMZNMKTPLACE AMAZON.CO,"SPLIT - EASTLIGHT LEVER ARCH FILES A4, 75MM METAL EDGE & FINGER PULL RING ASSORTED PACK OF 4 FILES, FOLDERS STATIONERY METAL DOCUMENT STORAGE (13.21%)",Peoples Services,LAC - Education,A44280,
http://opendatacommunities.org/id/london-borough-council/sutton,London Borough of Sutton,20/04/2021,10002266,2.32, AMZNMKTPLACE AMAZON.CO,SPLIT - WHITECROFT ESSENTIALS 37691 STATIONERY TUBS PENCIL ERASERS - ASSORTED COLOURS (PACK OF 25) (3.36%),Peoples Services,LAC - Education,A44280,
http://opendatacommunities.org/id/london-borough-council/sutton,London Borough of Sutton,20/04/2021,10002266,13.59, AMZNMKTPLACE AMAZON.CO,"SPLIT - ROPCH 11 11.6 LAPTOP SLEEVE WITH HANDLE, FELT LAPTOP BAG NOTEBOOK BAG BRIEFCASE COMPUTER CARRYING BAG CASE COVER POUCH FOR 11.6"" ACER / ASUS / LENOVO (16.35%)",Peoples Services,LAC - Education,A44280,
http://opendatacommunities.org/id/london-borough-council/sutton,London Borough of Sutton,20/04/2021,10002266,5.49, AMZNMKTPLACE AMAZON.CO,SPLIT - TULOKA GEOMETRY COMPASS SET 10PCS SCHOOL MATHS PROTRACTOR SET RULERS FOR STUDENT MATHS AND HOME SCHOOLING DRAFTING IN CARRY CASE (7.92%),Peoples Services,LAC - Education,A44280,
http://opendatacommunities.org/id/london-borough-council/sutton,London Borough of Sutton,20/04/2021,10002266,8.32, AMZNMKTPLACE AMAZON.CO,"SPLIT - ABEEC PASTEL STATIONERY SET - INCLUDING: PASTEL HIGHLIGHTERS, FELT TIP PENS, FINE LINERS AND GEL PENS - MARKERS & HIGHLIGHTERS STATIONARY SET FOR GIRL (42.37%)",Peoples Services,LAC - Education,A44280,
http://opendatacommunities.org/id/london-borough-council/sutton,London Borough of Sutton,20/04/2021,10002266,13.59, AMZNMKTPLACE AMAZON.CO,"SPLIT - ROPCH 11 11.6 LAPTOP SLEEVE WITH HANDLE, FELT LAPTOP BAG NOTEBOOK BAG BRIEFCASE COMPUTER CARRYING BAG CASE COVER POUCH FOR 11.6"" ACER / ASUS / LENOVO (57.63%)",Peoples Services,LAC - Education,A44280,
http://opendatacommunities.org/id/london-borough-council/sutton,London Borough of Sutton,19/04/2021,10002266,4.54, AMZNMKTPLACE AMAZON.CO,"SPLIT - BIC KIDS EVOLUTION ECOLUTIONS COLOURED PENCILS - ASSORTED COLOURS, PACK OF 24 STURDY DRAWING AND COLOURING PENCILS IN 4.3 MM LEAD (100%)",Peoples Services,LAC - Education,A44280,
http://opendatacommunities.org/id/london-borough-council/sutton,London Borough of Sutton,19/04/2021,10002266,11.99, AMZNMKTPLACE,SPLIT - ENGLISH GRAMMAR IN USE BOOK WITH ANSWERS: A SELF-STUDY REFERENCE AND PRACTICE BOOK FOR INTERMEDIATE LEARNERS OF ENGLISH (100%),Peoples Services,LAC - Education,A44280,
http://opendatacommunities.org/id/london-borough-council/sutton,London Borough of Sutton,19/04/2021,10002266,8.32, AMZNMKTPLACE AMAZON.CO,SPLIT - BOOK COVER FILM 50 CM X 10 METER (100%),Peoples Services,LAC - Education,A44280,
http://opendatacommunities.org/id/london-borough-council/sutton,London Borough of Sutton,19/04/2021,10002266,6.66, AMZNMKTPLACE AMAZON.CO,SPLIT - TRIPLUS 334 SB10AC 0.3 MM TRIPLUS FINELINER SUPERFINE POINT PEN - ASSORTED COLOURS (PACK OF 10) (100%),Peoples Services,LAC - Education,A44280,
http://opendatacommunities.org/id/london-borough-council/sutton,London Borough of Sutton,19/04/2021,10002266,8.74, AMZNMKTPLACE AMAZON.CO,SPLIT - PAPER MATE NON STOP MECHANICAL PENCIL HB 0.7MM - ASSORTED COLOURS (PACK OF 20) (100%),Peoples Services,LAC - Education,A44280,
http://opendatacommunities.org/id/london-borough-council/sutton,London Borough of Sutton,19/04/2021,10002266,2.49, AMZNMKTPLACE AMAZON.CO,SPLIT - BEROL HANDWRITING PENS 6 PACK MIXED (3 X BLUE + 3 X BLACK) (100%),Peoples Services,LAC - Education,A44280,
http://opendatacommunities.org/id/london-borough-council/sutton,London Borough of Sutton,19/04/2021,10002266,202.50, AMZNMKTPLACE AMAZON.CO,"SPLIT - HP STREAM 11-AK0008NA 11.6 INCH LAPTOP (ROSE PINK) (INTEL CELERON N4000, 2 GB RAM, 32 GB EMMC, OFFICE 365 AND 1 TB ONEDRIVE CLOUD STORAGE, 1 YEAR SUBS (100%)",Peoples Services,LAC - Education,A44280,
http://opendatacommunities.org/id/london-borough-council/sutton,London Borough of Sutton,19/04/2021,10002266,202.50, AMZNMKTPLACE AMAZON.CO,"SPLIT - HP STREAM 11-AK0008NA 11.6 INCH LAPTOP (ROSE PINK) (INTEL CELERON N4000, 2 GB RAM, 32 GB EMMC, OFFICE 365 AND 1 TB ONEDRIVE CLOUD STORAGE, 1 YEAR SUBS (100%)",Peoples Services,LAC - Education,A44280,
http://opendatacommunities.org/id/london-borough-council/sutton,London Borough of Sutton,08/04/2021,10002266,17.50, AMZNMKTPLACE AMAZON.CO,SPLIT - ESSENTIAL GRAMMAR IN USE WITH ANSWERS: A SELF-STUDY REFERENCE AND PRACTICE BOOK FOR ELEMENTARY LEARNERS OF ENGLISH (100%),Peoples Services,LAC - Education,A44280,
http://opendatacommunities.org/id/london-borough-council/sutton,London Borough of Sutton,01/04/2021,10002266,417.97, GET LICENSED,SIA DOOR SECURITY QUALIFICATION HB,Peoples Services,LAC - Education,A44280,
http://opendatacommunities.org/id/london-borough-council/sutton,London Borough of Sutton,30/03/2021,10002266,190.83, AMAZON.CO.UK MU3DZ8DN4,"SPLIT - ACER CHROMEBOOK 314 CB314-H - (INTEL CELERON N4000, 4GB RAM, 32GB EMMC, 14 INCH HD DISPLAY, CHROME OS, SILVER) (98.22%)",Peoples Services,LAC - Education,A44280,
http://opendatacommunities.org/id/london-borough-council/sutton,London Borough of Sutton,30/03/2021,10002266,4.16, AMAZON.CO.UK MU3DZ8DN4,BALANCING ENTRY AMOUNT (1.78%),Peoples Services,LAC - Education,A44280,
http://opendatacommunities.org/id/london-borough-council/sutton,London Borough of Sutton,30/03/2021,10002266,4.17, AMAZON.CO.UK MU47V0DR4,"SPLIT - MODERN OROMO DICTIONARY: OROMO-ENGLISH, ENGLISH-OROMO: 10000 (OROMO KASAHOROW) (51.1%)",Peoples Services,LAC - Education,A44280,
http://opendatacommunities.org/id/london-borough-council/sutton,London Borough of Sutton,30/03/2021,10002266,3.99, AMAZON.CO.UK MU47V0DR4,BALANCING ENTRY AMOUNT (48.9%),Peoples Services,LAC - Education,A44280,
http://opendatacommunities.org/id/london-borough-council/sutton,London Borough of Sutton,27/03/2021,10002266,9.51, AMAZON.CO.UK MU8O61HU4,SPLIT - ENGLISH FOR EVERYONE COURSE BOOK LEVEL 1 BEGINNER: A COMPLETE SELF-STUDY PROGRAMME (39.42%),Peoples Services,LAC - Education,A44280,
http://opendatacommunities.org/id/london-borough-council/sutton,London Borough of Sutton,22/04/2021,10002266,18.72, AMAZON.CO.UK M48O052G4,"SPLIT - A THERAPEUTIC TREASURE DECK OF GROUNDING, SOOTHING, COPING AND REGULATING CARDS (THERAPEUTIC TREASURES COLLECTION) (100%)",Peoples Services,LAC - Education,A44280,
http://opendatacommunities.org/id/london-borough-council/sutton,London Borough of Sutton,22/04/2021,10002266,18.72, AMAZON.CO.UK M477J4224,"SPLIT - A THERAPEUTIC TREASURE DECK OF GROUNDING, SOOTHING, COPING AND REGULATING CARDS (THERAPEUTIC TREASURES COLLECTION) (100%)",Peoples Services,LAC - Education,A44280,
http://opendatacommunities.org/id/london-borough-council/sutton,London Borough of Sutton,21/04/2021,10002266,9.35, AMZNMKTPLACE AMAZON.CO,"SPLIT - OXFORD MY NOTES, A4 NOTEBOOK, WIREBOUND, LINED, 200 PAGE, ASSORTED, PACK OF 3 (18.68%)",Peoples Services,LAC - Education,A44280,
http://opendatacommunities.org/id/london-borough-council/sutton,London Borough of Sutton,21/04/2021,10002266,1.67, AMZNMKTPLACE AMAZON.CO,"SPLIT - BIC CRISTAL ORIGINAL BALLPOINT PENS ASSORTED COLOURS, PACK OF 10 (3.33%)",Peoples Services,LAC - Education,A44280,
http://opendatacommunities.org/id/london-borough-council/sutton,London Borough of Sutton,21/04/2021,10002266,9.17, AMZNMKTPLACE AMAZON.CO,"SPLIT - CASIO FX-85GTX SCIENTIFIC CALCULATOR, BLACK (18.31%)",Peoples Services,LAC - Education,A44280,
http://opendatacommunities.org/id/london-borough-council/sutton,London Borough of Sutton,21/04/2021,10002266,4.77, AMZNMKTPLACE AMAZON.CO,SPLIT - HIGHLIGHTER - STABILO BOSS ORIGINAL PASTEL WALLET OF 6 ASSORTED COLOURS (9.54%),Peoples Services,LAC - Education,A44280,
http://opendatacommunities.org/id/london-borough-council/sutton,London Borough of Sutton,21/04/2021,10002266,17.08, AMZNMKTPLACE AMAZON.CO,"SPLIT - CRAYOLA SUPER TIPS WASHABLE MARKERS (PACK OF 100, MULTI-COLOUR) (34.13%)",Peoples Services,LAC - Education,A44280,
http://opendatacommunities.org/id/london-borough-council/sutton,London Borough of Sutton,21/04/2021,10002266,8.02, AMZNMKTPLACE AMAZON.CO,SPLIT - HELIX OXFORD COMPLETE STATIONERY SET IN 13.5 INCH PENCIL CASE (16.01%),Peoples Services,LAC - Education,A44280,
http://opendatacommunities.org/id/london-borough-council/sutton,London Borough of Sutton,27/03/2021,10002266,11.00, AMAZON.CO.UK MU8O61HU4,"SPLIT - ENGLISH FOR EVERYONE JUNIOR BEGINNER'S COURSE: LOOK, LISTEN AND LEARN (45.58%)",Peoples Services,LAC - Education,A44280,
http://opendatacommunities.org/id/london-borough-council/sutton,London Borough of Sutton,27/03/2021,10002266,1.49, AMAZON.CO.UK MU8O61HU4,SPLIT - WRITING WORKBOOK AGES 3-5: PREPARE FOR PRESCHOOL WITH EASY HOME LEARNING (COLLINS EASY LEARNING PRESCHOOL) (5.88%),Peoples Services,LAC - Education,A44280,
http://opendatacommunities.org/id/london-borough-council/sutton,London Borough of Sutton,27/03/2021,10002266,1.35, AMAZON.CO.UK MU8O61HU4,SPLIT - PICTURE WORDS: AGES 4 UP (9.12%),Peoples Services,LAC - Education,A44280,
